[Event "Late Titled Tuesday Blitz February 8 2022"]
[White "Bibasa, Bob"]
[Black "Janaszak, Dawid"]
[WhiteFideId "10000240"]
[BlackFideId "1119206"]
[WhiteElo "2056"]
[BlackElo "2199"]
[Result "1-0"]
[Round "05"]
[TimeControl "180+1"]
[Date "2022.02.09"]
[WhiteClock "0:00:08"]
[BlackClock "0:00:05"]

1. e4 {[%clk 0:03:00]}  c5 {[%clk 0:02:58]} 2. Nf3 {[%clk 0:03:00]}  Nc6 {[%clk 0:02:58]} 3. Bb5 {[%clk 0:03:00]}  e5 {[%clk 0:02:57]} 4. O-O {[%clk 0:02:56]}  Bd6 {[%clk 0:02:57]} 5. c3 {[%clk 0:02:55]}  a6 {[%clk 0:02:56]} 6. Ba4 {[%clk 0:02:55]}  Nge7 {[%clk 0:02:51]} 7. d4 {[%clk 0:02:54]}  cxd4 {[%clk 0:02:47]} 8. cxd4 {[%clk 0:02:55]}  b5 {[%clk 0:02:47]} 9. Bb3 {[%clk 0:02:55]}  exd4 {[%clk 0:02:45]} 10. Nxd4 {[%clk 0:02:54]}  Qc7 {[%clk 0:02:46]} 11. Nf3 {[%clk 0:02:49]}  O-O {[%clk 0:02:36]} 12. Nc3 {[%clk 0:02:49]}  Bb7 {[%clk 0:02:33]} 13. Bg5 {[%clk 0:02:37]}  h6 {[%clk 0:02:25]} 14. Bh4 {[%clk 0:02:37]}  b4 {[%clk 0:02:18]} 15. Nd5 {[%clk 0:02:34]}  Nxd5 {[%clk 0:02:18]} 16. Bxd5 {[%clk 0:02:33]}  Bf4 {[%clk 0:02:06]} 17. Bg3 {[%clk 0:02:28]}  Bxg3 {[%clk 0:02:03]} 18. hxg3 {[%clk 0:02:28]}  Rac8 {[%clk 0:01:56]} 19. Rc1 {[%clk 0:02:28]}  Qb6 {[%clk 0:01:55]} 20. Qd2 {[%clk 0:02:21]}  a5 {[%clk 0:01:52]} 21. Bb3 {[%clk 0:02:11]}  Rcd8 {[%clk 0:01:39]} 22. Qf4 {[%clk 0:02:09]}  Ne7 {[%clk 0:01:28]} 23. Ne5 {[%clk 0:01:57]}  d5 {[%clk 0:01:23]} 24. Rfd1 {[%clk 0:01:50]}  a4 {[%clk 0:01:16]} 25. Bxa4 {[%clk 0:01:47]}  dxe4 {[%clk 0:01:16]} 26. Nd7 {[%clk 0:01:43]}  Rxd7 {[%clk 0:01:04]} 27. Bxd7 {[%clk 0:01:43]}  Nd5 {[%clk 0:00:53]} 28. Qe5 {[%clk 0:01:38]}  e3 {[%clk 0:00:50]} 29. Rxd5 {[%clk 0:01:26]}  exf2+ {[%clk 0:00:51]} 30. Kf1 {[%clk 0:01:25]}  Bxd5 {[%clk 0:00:44]} 31. Qxd5 {[%clk 0:01:26]}  Qe3 {[%clk 0:00:40]} 32. Rd1 {[%clk 0:01:15]}  Rd8 {[%clk 0:00:38]} 33. Qf3 {[%clk 0:01:10]}  Qa7 {[%clk 0:00:32]} 34. Bb5 {[%clk 0:00:47]}  Rb8 {[%clk 0:00:17]} 35. Bc4 {[%clk 0:00:47]}  Rc8 {[%clk 0:00:16]} 36. Bb3 {[%clk 0:00:41]}  g6 {[%clk 0:00:06]} 37. Qxf2 {[%clk 0:00:40]}  Qe7 {[%clk 0:00:06]} 38. Re1 {[%clk 0:00:39]}  Qb7 {[%clk 0:00:04]} 39. Qf4 {[%clk 0:00:36]}  Rc7 {[%clk 0:00:04]} 40. Qxh6 {[%clk 0:00:34]}  Qa6+ {[%clk 0:00:04]} 41. Kg1 {[%clk 0:00:34]}  Rc8 {[%clk 0:00:04]} 42. Rf1 {[%clk 0:00:32]}  Rf8 {[%clk 0:00:04]} 43. Rf2 {[%clk 0:00:28]}  Qb6 {[%clk 0:00:04]} 44. Qf4 {[%clk 0:00:25]}  Qc5 {[%clk 0:00:03]} 45. Qg4 {[%clk 0:00:20]}  Kg7 {[%clk 0:00:03]} 46. Qe2 {[%clk 0:00:18]}  Qd4 {[%clk 0:00:02]} 47. Qc4 {[%clk 0:00:15]}  Qe3 {[%clk 0:00:02]} 48. Qe2 {[%clk 0:00:13]}  Qd4 {[%clk 0:00:02]} 49. g4 {[%clk 0:00:10]}  Qc5 {[%clk 0:00:02]} 50. g3 {[%clk 0:00:09]}  Qc1+ {[%clk 0:00:03]} 51. Qf1 {[%clk 0:00:09]}  Qc6 {[%clk 0:00:03]} 52. Rxf7+ {[%clk 0:00:08]}  Rxf7 {[%clk 0:00:04]} 53. Qxf7+ {[%clk 0:00:09]}  Kh6 {[%clk 0:00:05]} 54. Qf8+ {[%clk 0:00:08]}  Kg5 {[%clk 0:00:05]} 55. Qf4# {[%clk 0:00:08]} 1-0


[Site "https://www.chess.com"]

[Event "Late Titled Tuesday Blitz February 8 2022"]
[White "Bilan, Danila"]
[Black "Wieczorek, Oskar"]
[WhiteFideId "24161918"]
[BlackFideId "1133950"]
[WhiteElo "2164"]
[BlackElo "2319"]
[Result "1-0"]
[Round "05"]
[TimeControl "180+1"]
[Date "2022.02.09"]
[WhiteClock "0:00:22"]
[BlackClock "0:00:08"]

1. d4 {[%clk 0:02:58]}  Nf6 {[%clk 0:02:59]} 2. Nf3 {[%clk 0:02:59]}  g6 {[%clk 0:02:59]} 3. Bg5 {[%clk 0:02:59]}  Bg7 {[%clk 0:02:57]} 4. c3 {[%clk 0:02:59]}  b6 {[%clk 0:02:56]} 5. Nbd2 {[%clk 0:02:58]}  Bb7 {[%clk 0:02:56]} 6. e3 {[%clk 0:02:58]}  O-O {[%clk 0:02:56]} 7. Bd3 {[%clk 0:02:57]}  c5 {[%clk 0:02:57]} 8. O-O {[%clk 0:02:57]}  cxd4 {[%clk 0:02:56]} 9. exd4 {[%clk 0:02:55]}  d6 {[%clk 0:02:56]} 10. Re1 {[%clk 0:02:54]}  Re8 {[%clk 0:02:56]} 11. Qc2 {[%clk 0:02:38]}  Nbd7 {[%clk 0:02:53]} 12. Ne4 {[%clk 0:02:32]}  Nxe4 {[%clk 0:02:50]} 13. Bxe4 {[%clk 0:02:32]}  Bxe4 {[%clk 0:02:48]} 14. Rxe4 {[%clk 0:02:33]}  Nf6 {[%clk 0:02:44]} 15. Re2 {[%clk 0:02:30]}  Qc7 {[%clk 0:02:39]} 16. Rae1 {[%clk 0:02:28]}  Nd5 {[%clk 0:02:24]} 17. Qb3 {[%clk 0:02:21]}  e6 {[%clk 0:02:24]} 18. Nd2 {[%clk 0:02:10]}  b5 {[%clk 0:02:22]} 19. Nf1 {[%clk 0:02:02]}  Qc4 {[%clk 0:02:02]} 20. Ne3 {[%clk 0:01:58]}  Qxb3 {[%clk 0:01:58]} 21. axb3 {[%clk 0:01:59]}  Nb6 {[%clk 0:01:34]} 22. Bf4 {[%clk 0:01:47]}  Bf8 {[%clk 0:01:11]} 23. b4 {[%clk 0:01:34]}  a5 {[%clk 0:01:04]} 24. bxa5 {[%clk 0:01:29]}  Rxa5 {[%clk 0:01:05]} 25. h3 {[%clk 0:01:27]}  Rea8 {[%clk 0:01:03]} 26. Nc2 {[%clk 0:01:09]}  Nd5 {[%clk 0:01:00]} 27. Bc1 {[%clk 0:01:05]}  Ra2 {[%clk 0:00:48]} 28. g3 {[%clk 0:00:57]}  Rb8 {[%clk 0:00:44]} 29. Kg2 {[%clk 0:00:44]}  b4 {[%clk 0:00:35]} 30. c4 {[%clk 0:00:38]}  Nc7 {[%clk 0:00:20]} 31. b3 {[%clk 0:00:36]}  d5 {[%clk 0:00:16]} 32. Ne3 {[%clk 0:00:26]}  dxc4 {[%clk 0:00:13]} 33. Rxa2 {[%clk 0:00:26]}  c3 {[%clk 0:00:10]} 34. Nc4 {[%clk 0:00:21]}  Nb5 {[%clk 0:00:11]} 35. Be3 {[%clk 0:00:21]}  Bg7 {[%clk 0:00:10]} 36. Rea1 {[%clk 0:00:21]}  Nc7 {[%clk 0:00:06]} 37. Ra7 {[%clk 0:00:20]}  Rc8 {[%clk 0:00:06]} 38. Rxc7 {[%clk 0:00:20]}  Rxc7 {[%clk 0:00:06]} 39. Ra8+ {[%clk 0:00:21]}  Bf8 {[%clk 0:00:07]} 40. Bh6 {[%clk 0:00:21]}  Rc8 {[%clk 0:00:08]} 41. Rxc8 {[%clk 0:00:21]}  f6 {[%clk 0:00:08]} 42. Rxf8# {[%clk 0:00:22]} 1-0


[Site "https://www.chess.com"]

[Event "Late Titled Tuesday Blitz February 8 2022"]
[White "Borisova, Ekaterina"]
[Black "Grigorov, Grigor"]
[WhiteFideId "34124184"]
[BlackFideId "2907313"]
[WhiteElo "2034"]
[BlackElo "2510"]
[Result "1/2-1/2"]
[Round "05"]
[TimeControl "180+1"]
[Date "2022.02.09"]
[WhiteClock "0:00:14"]
[BlackClock "0:00:13"]

1. d4 {[%clk 0:03:00]}  Nf6 {[%clk 0:02:59]} 2. c4 {[%clk 0:03:01]}  e6 {[%clk 0:02:59]} 3. Nc3 {[%clk 0:03:01]}  Bb4 {[%clk 0:02:59]} 4. f3 {[%clk 0:03:01]}  c5 {[%clk 0:02:48]} 5. d5 {[%clk 0:03:01]}  O-O {[%clk 0:02:45]} 6. e4 {[%clk 0:03:01]}  d6 {[%clk 0:02:44]} 7. Ne2 {[%clk 0:03:00]}  b5 {[%clk 0:02:41]} 8. Nf4 {[%clk 0:02:59]}  exd5 {[%clk 0:02:33]} 9. Nxd5 {[%clk 0:02:41]}  Nxd5 {[%clk 0:02:20]} 10. cxd5 {[%clk 0:02:09]}  f5 {[%clk 0:02:07]} 11. e5 {[%clk 0:01:49]}  dxe5 {[%clk 0:02:00]} 12. Bxb5 {[%clk 0:01:49]}  Qh4+ {[%clk 0:01:33]} 13. g3 {[%clk 0:01:42]}  Qd4 {[%clk 0:01:34]} 14. Qxd4 {[%clk 0:01:08]}  cxd4 {[%clk 0:01:33]} 15. a3 {[%clk 0:01:05]}  Ba5 {[%clk 0:01:33]} 16. b4 {[%clk 0:01:05]}  Bb6 {[%clk 0:01:32]} 17. Na4 {[%clk 0:01:01]}  Bb7 {[%clk 0:01:32]} 18. Bc4 {[%clk 0:00:51]}  Rd8 {[%clk 0:01:32]} 19. Bg5 {[%clk 0:00:38]}  Rd7 {[%clk 0:01:30]} 20. d6+ {[%clk 0:00:31]}  Kf8 {[%clk 0:01:24]} 21. Nc5 {[%clk 0:00:29]}  Bxc5 {[%clk 0:01:20]} 22. bxc5 {[%clk 0:00:30]}  Bxf3 {[%clk 0:00:52]} 23. O-O {[%clk 0:00:29]}  Be4 {[%clk 0:00:38]} 24. Rae1 {[%clk 0:00:28]}  Ke8 {[%clk 0:00:36]} 25. Rxe4 {[%clk 0:00:25]}  fxe4 {[%clk 0:00:35]} 26. Bd5 {[%clk 0:00:26]}  Na6 {[%clk 0:00:28]} 27. Bxa8 {[%clk 0:00:22]}  Nxc5 {[%clk 0:00:29]} 28. Bc6 {[%clk 0:00:22]}  e3 {[%clk 0:00:24]} 29. Rb1 {[%clk 0:00:17]}  h6 {[%clk 0:00:18]} 30. Be7 {[%clk 0:00:13]}  d3 {[%clk 0:00:16]} 31. Kf1 {[%clk 0:00:07]}  e2+ {[%clk 0:00:12]} 32. Ke1 {[%clk 0:00:07]}  e4 {[%clk 0:00:11]} 33. Kd2 {[%clk 0:00:07]}  Kf7 {[%clk 0:00:10]} 34. Bxd7 {[%clk 0:00:06]}  Nxd7 {[%clk 0:00:11]} 35. Re1 {[%clk 0:00:03]}  Ne5 {[%clk 0:00:11]} 36. Ke3 {[%clk 0:00:03]}  Nf3 {[%clk 0:00:10]} 37. Rxe2 {[%clk 0:00:02]}  dxe2 {[%clk 0:00:10]} 38. Kxe2 {[%clk 0:00:03]}  Nd4+ {[%clk 0:00:08]} 39. Ke3 {[%clk 0:00:04]}  Nf5+ {[%clk 0:00:08]} 40. Kxe4 {[%clk 0:00:04]}  Nxe7 {[%clk 0:00:08]} 41. dxe7 {[%clk 0:00:05]}  Kxe7 {[%clk 0:00:09]} 42. Kf5 {[%clk 0:00:04]}  Kf7 {[%clk 0:00:08]} 43. g4 {[%clk 0:00:04]}  g6+ {[%clk 0:00:08]} 44. Ke5 {[%clk 0:00:05]}  Ke7 {[%clk 0:00:08]} 45. h4 {[%clk 0:00:04]}  h5 {[%clk 0:00:06]} 46. gxh5 {[%clk 0:00:03]}  gxh5 {[%clk 0:00:06]} 47. a4 {[%clk 0:00:03]}  a5 {[%clk 0:00:05]} 48. Kf5 {[%clk 0:00:04]}  Kd6 {[%clk 0:00:05]} 49. Kg5 {[%clk 0:00:04]}  Ke5 {[%clk 0:00:05]} 50. Kxh5 {[%clk 0:00:05]}  Kf5 {[%clk 0:00:05]} 51. Kh6 {[%clk 0:00:05]}  Kf6 {[%clk 0:00:06]} 52. h5 {[%clk 0:00:06]}  Kf7 {[%clk 0:00:06]} 53. Kg5 {[%clk 0:00:06]}  Kg7 {[%clk 0:00:06]} 54. Kf5 {[%clk 0:00:07]}  Kh6 {[%clk 0:00:07]} 55. Ke5 {[%clk 0:00:08]}  Kxh5 {[%clk 0:00:08]} 56. Kd5 {[%clk 0:00:09]}  Kg6 {[%clk 0:00:08]} 57. Kc5 {[%clk 0:00:10]}  Kf7 {[%clk 0:00:09]} 58. Kb5 {[%clk 0:00:11]}  Ke8 {[%clk 0:00:10]} 59. Kxa5 {[%clk 0:00:12]}  Kd8 {[%clk 0:00:11]} 60. Kb6 {[%clk 0:00:12]}  Kc8 {[%clk 0:00:12]} 61. a5 {[%clk 0:00:13]}  Kb8 {[%clk 0:00:12]} 62. a6 {[%clk 0:00:14]}  Ka8 {[%clk 0:00:13]} 63. a7 {[%clk 0:00:14]} 1/2-1/2


[Site "https://www.chess.com"]

[Event "Late Titled Tuesday Blitz February 8 2022"]
[White "Clawitter, Craig"]
[Black "Myers, Dominique"]
[WhiteFideId "2023105"]
[BlackFideId "2041715"]
[WhiteElo "2183"]
[BlackElo "1986"]
[Result "0-1"]
[Round "05"]
[TimeControl "180+1"]
[Date "2022.02.09"]
[WhiteClock "0:00:01"]
[BlackClock "0:01:04"]

1. e4 {[%clk 0:03:00]}  e5 {[%clk 0:02:02]} 2. Nf3 {[%clk 0:02:59]}  Nc6 {[%clk 0:01:58]} 3. Bb5 {[%clk 0:02:59]}  a6 {[%clk 0:01:58]} 4. Ba4 {[%clk 0:03:00]}  Nf6 {[%clk 0:01:58]} 5. O-O {[%clk 0:02:59]}  b5 {[%clk 0:01:59]} 6. Bb3 {[%clk 0:02:59]}  Bc5 {[%clk 0:01:59]} 7. a4 {[%clk 0:02:57]}  Rb8 {[%clk 0:01:59]} 8. c3 {[%clk 0:02:53]}  d6 {[%clk 0:02:00]} 9. d4 {[%clk 0:02:39]}  Bb6 {[%clk 0:02:00]} 10. axb5 {[%clk 0:02:38]}  axb5 {[%clk 0:01:59]} 11. Na3 {[%clk 0:02:39]}  Bg4 {[%clk 0:01:59]} 12. Nxb5 {[%clk 0:02:37]}  O-O {[%clk 0:01:59]} 13. Re1 {[%clk 0:02:22]}  h6 {[%clk 0:01:53]} 14. Bc2 {[%clk 0:02:03]}  Bxf3 {[%clk 0:01:53]} 15. Qxf3 {[%clk 0:01:58]}  exd4 {[%clk 0:01:52]} 16. cxd4 {[%clk 0:01:48]}  Nxd4 {[%clk 0:01:53]} 17. Nxd4 {[%clk 0:01:47]}  Bxd4 {[%clk 0:01:54]} 18. Qg3 {[%clk 0:01:11]}  Be5 {[%clk 0:01:52]} 19. f4 {[%clk 0:00:55]}  Bxb2 {[%clk 0:01:51]} 20. Bxb2 {[%clk 0:00:51]}  Rxb2 {[%clk 0:01:52]} 21. e5 {[%clk 0:00:48]}  dxe5 {[%clk 0:01:52]} 22. fxe5 {[%clk 0:00:43]}  Rxc2 {[%clk 0:01:52]} 23. exf6 {[%clk 0:00:43]}  Qxf6 {[%clk 0:01:53]} 24. Rf1 {[%clk 0:00:37]}  Qd4+ {[%clk 0:01:50]} 25. Kh1 {[%clk 0:00:37]}  Re8 {[%clk 0:01:48]} 26. Rad1 {[%clk 0:00:35]}  Qa4 {[%clk 0:01:30]} 27. Rf4 {[%clk 0:00:20]}  Rc4 {[%clk 0:01:26]} 28. Rff1 {[%clk 0:00:12]}  Rc2 {[%clk 0:01:22]} 29. Rf4 {[%clk 0:00:11]}  Rd2 {[%clk 0:01:16]} 30. Rdf1 {[%clk 0:00:08]}  Rd1 {[%clk 0:01:14]} 31. Rxf7 {[%clk 0:00:07]}  Rxf1+ {[%clk 0:01:09]} 32. Rxf1 {[%clk 0:00:08]}  Qc4 {[%clk 0:01:05]} 33. Qf3 {[%clk 0:00:06]}  Qe6 {[%clk 0:01:05]} 34. h3 {[%clk 0:00:05]}  c5 {[%clk 0:01:05]} 35. Rc1 {[%clk 0:00:04]}  c4 {[%clk 0:01:05]} 36. Qf4 {[%clk 0:00:03]}  Rc8 {[%clk 0:01:04]} 37. Rc3 {[%clk 0:00:01]}  Qf6 {[%clk 0:01:04]} 0-1


[Site "https://www.chess.com"]

[Event "Late Titled Tuesday Blitz February 8 2022"]
[White "Degardin, Sylvain"]
[Black "Roman, Rodrigo"]
[WhiteFideId "20623070"]
[BlackFideId "3701220"]
[WhiteElo "2156"]
[BlackElo "2001"]
[Result "0-1"]
[Round "05"]
[TimeControl "180+1"]
[Date "2022.02.09"]
[WhiteClock "0:00:05"]
[BlackClock "0:00:27"]

1. Nf3 {[%clk 0:02:55]}  e6 {[%clk 0:02:58]} 2. g3 {[%clk 0:02:53]}  Ke7 {[%clk 0:02:56]} 3. Bg2 {[%clk 0:02:53]}  Nf6 {[%clk 0:02:54]} 4. O-O {[%clk 0:02:52]}  Nc6 {[%clk 0:02:54]} 5. d4 {[%clk 0:02:51]}  d5 {[%clk 0:02:51]} 6. b3 {[%clk 0:02:49]}  Ke8 {[%clk 0:02:47]} 7. c4 {[%clk 0:02:49]}  Be7 {[%clk 0:02:36]} 8. Bb2 {[%clk 0:02:47]}  Kf8 {[%clk 0:02:33]} 9. e3 {[%clk 0:02:45]}  g6 {[%clk 0:02:23]} 10. Nc3 {[%clk 0:02:43]}  Kg7 {[%clk 0:02:16]} 11. Qe2 {[%clk 0:02:44]}  Ne4 {[%clk 0:02:16]} 12. Nxe4 {[%clk 0:02:41]}  dxe4 {[%clk 0:02:15]} 13. Nd2 {[%clk 0:02:40]}  f6 {[%clk 0:02:11]} 14. Nxe4 {[%clk 0:02:38]}  Qe8 {[%clk 0:02:06]} 15. a3 {[%clk 0:02:28]}  Nd8 {[%clk 0:02:05]} 16. Rfd1 {[%clk 0:02:25]}  c6 {[%clk 0:02:06]} 17. h4 {[%clk 0:02:21]}  h5 {[%clk 0:02:05]} 18. Qf3 {[%clk 0:02:13]}  Nf7 {[%clk 0:02:05]} 19. d5 {[%clk 0:02:01]}  e5 {[%clk 0:02:05]} 20. d6 {[%clk 0:01:58]}  Bg4 {[%clk 0:02:03]} 21. dxe7 {[%clk 0:01:20]}  Bxf3 {[%clk 0:01:58]} 22. Bxf3 {[%clk 0:01:21]}  Qxe7 {[%clk 0:01:53]} 23. a4 {[%clk 0:01:14]}  Rhd8 {[%clk 0:01:44]} 24. Ba3 {[%clk 0:01:14]}  Qe8 {[%clk 0:01:43]} 25. Nc5 {[%clk 0:01:11]}  b6 {[%clk 0:01:37]} 26. Na6 {[%clk 0:01:10]}  Rxd1+ {[%clk 0:01:35]} 27. Rxd1 {[%clk 0:01:11]}  Rd8 {[%clk 0:01:34]} 28. Rxd8 {[%clk 0:01:01]}  Qxd8 {[%clk 0:01:35]} 29. Bxc6 {[%clk 0:01:01]}  Qd1+ {[%clk 0:01:34]} 30. Kg2 {[%clk 0:01:00]}  Qxb3 {[%clk 0:01:35]} 31. Be7 {[%clk 0:00:51]}  Qxc4 {[%clk 0:01:33]} 32. Bb5 {[%clk 0:00:52]}  Qe4+ {[%clk 0:01:30]} 33. Kh2 {[%clk 0:00:51]}  Qf3 {[%clk 0:01:10]} 34. Kg1 {[%clk 0:00:49]}  g5 {[%clk 0:01:08]} 35. Nc7 {[%clk 0:00:46]}  gxh4 {[%clk 0:00:50]} 36. Ne6+ {[%clk 0:00:46]}  Kh7 {[%clk 0:00:49]} 37. Nf8+ {[%clk 0:00:22]}  Kg8 {[%clk 0:00:49]} 38. gxh4 {[%clk 0:00:23]}  Qd1+ {[%clk 0:00:47]} 39. Kh2 {[%clk 0:00:19]}  Qf3 {[%clk 0:00:43]} 40. Kg1 {[%clk 0:00:17]}  Qg4+ {[%clk 0:00:43]} 41. Kf1 {[%clk 0:00:16]}  Qxh4 {[%clk 0:00:43]} 42. Bd7 {[%clk 0:00:14]}  Qc4+ {[%clk 0:00:40]} 43. Kg2 {[%clk 0:00:13]}  Qe4+ {[%clk 0:00:36]} 44. Kh2 {[%clk 0:00:12]}  Ng5 {[%clk 0:00:32]} 45. Bxf6 {[%clk 0:00:08]}  Nf3+ {[%clk 0:00:29]} 46. Kh3 {[%clk 0:00:07]}  Kxf8 {[%clk 0:00:28]} 47. Be6 {[%clk 0:00:05]}  Qg6 {[%clk 0:00:27]} 0-1


[Site "https://www.chess.com"]

[Event "Late Titled Tuesday Blitz February 8 2022"]
[White "Derraugh, Geordie"]
[Black "Sargsyan, Anna M."]
[WhiteFideId "2603950"]
[BlackFideId "13308130"]
[WhiteElo "2116"]
[BlackElo "2271"]
[Result "0-1"]
[Round "05"]
[TimeControl "180+1"]
[Date "2022.02.09"]
[WhiteClock "0:00:56"]
[BlackClock "0:02:52"]

1. e4 {[%clk 0:01:13]}  c6 {[%clk 0:02:59]} 2. d4 {[%clk 0:01:11]}  d5 {[%clk 0:03:00]} 3. f3 {[%clk 0:01:12]}  dxe4 {[%clk 0:03:00]} 4. fxe4 {[%clk 0:01:13]}  e5 {[%clk 0:03:01]} 5. Nf3 {[%clk 0:01:12]}  Bg4 {[%clk 0:03:01]} 6. Bc4 {[%clk 0:01:11]}  Nd7 {[%clk 0:03:01]} 7. O-O {[%clk 0:01:12]}  Ngf6 {[%clk 0:03:02]} 8. c3 {[%clk 0:01:12]}  Bd6 {[%clk 0:03:02]} 9. Nbd2 {[%clk 0:01:12]}  O-O {[%clk 0:03:02]} 10. Qe1 {[%clk 0:01:12]}  Qc7 {[%clk 0:03:02]} 11. h3 {[%clk 0:01:12]}  Bh5 {[%clk 0:03:01]} 12. Bd3 {[%clk 0:01:13]}  Rae8 {[%clk 0:03:01]} 13. Qh4 {[%clk 0:01:13]}  Bg6 {[%clk 0:03:01]} 14. Re1 {[%clk 0:01:08]}  exd4 {[%clk 0:03:00]} 15. Qg5 {[%clk 0:01:01]}  Bf4 {[%clk 0:02:55]} 16. Qh4 {[%clk 0:00:55]}  Bg3 {[%clk 0:02:55]} 17. Qg5 {[%clk 0:00:56]}  h6 {[%clk 0:02:52]} 0-1


[Site "https://www.chess.com"]

[Event "Late Titled Tuesday Blitz February 8 2022"]
[White "Dias, Joao Batista"]
[Black "Goltseva, Ekaterina"]
[WhiteFideId "2108240"]
[BlackFideId "24173770"]
[WhiteElo "1898"]
[BlackElo "2140"]
[Result "0-1"]
[Round "05"]
[TimeControl "180+1"]
[Date "2022.02.09"]
[WhiteClock "0:00:40"]
[BlackClock "0:00:58"]

1. e4 {[%clk 0:02:24]}  e5 {[%clk 0:02:59]} 2. Nf3 {[%clk 0:02:23]}  Nc6 {[%clk 0:02:59]} 3. d4 {[%clk 0:02:20]}  exd4 {[%clk 0:02:59]} 4. Nxd4 {[%clk 0:02:20]}  Bc5 {[%clk 0:02:58]} 5. Nxc6 {[%clk 0:02:20]}  Qf6 {[%clk 0:02:57]} 6. Qd2 {[%clk 0:02:20]}  dxc6 {[%clk 0:02:35]} 7. Nc3 {[%clk 0:02:19]}  Bd4 {[%clk 0:02:34]} 8. Bd3 {[%clk 0:02:18]}  Ne7 {[%clk 0:02:17]} 9. O-O {[%clk 0:02:16]}  Ng6 {[%clk 0:02:11]} 10. Rb1 {[%clk 0:02:13]}  O-O {[%clk 0:02:02]} 11. Ne2 {[%clk 0:02:13]}  Bb6 {[%clk 0:02:00]} 12. b3 {[%clk 0:02:06]}  Nh4 {[%clk 0:01:47]} 13. Qg5 {[%clk 0:01:57]}  Qxg5 {[%clk 0:01:40]} 14. Bxg5 {[%clk 0:01:56]}  Ng6 {[%clk 0:01:40]} 15. h3 {[%clk 0:01:43]}  f6 {[%clk 0:01:35]} 16. Bd2 {[%clk 0:01:38]}  Ne5 {[%clk 0:01:35]} 17. Bb4 {[%clk 0:01:27]}  Rd8 {[%clk 0:01:33]} 18. Rbd1 {[%clk 0:01:24]}  Be6 {[%clk 0:01:32]} 19. Nf4 {[%clk 0:01:21]}  Bf7 {[%clk 0:01:32]} 20. Rfe1 {[%clk 0:01:15]}  a5 {[%clk 0:01:31]} 21. Bc3 {[%clk 0:01:12]}  a4 {[%clk 0:01:31]} 22. Bxe5 {[%clk 0:01:08]}  fxe5 {[%clk 0:01:30]} 23. Ne2 {[%clk 0:01:07]}  axb3 {[%clk 0:01:28]} 24. axb3 {[%clk 0:01:06]}  Kf8 {[%clk 0:01:22]} 25. g3 {[%clk 0:01:01]}  Be6 {[%clk 0:01:21]} 26. Kg2 {[%clk 0:01:01]}  Ke7 {[%clk 0:01:18]} 27. f4 {[%clk 0:01:01]}  Ra2 {[%clk 0:01:13]} 28. f5 {[%clk 0:00:59]}  Bf7 {[%clk 0:01:12]} 29. Nc3 {[%clk 0:01:00]}  Raa8 {[%clk 0:01:08]} 30. Ra1 {[%clk 0:00:59]}  Rxa1 {[%clk 0:01:01]} 31. Rxa1 {[%clk 0:00:57]}  Bd4 {[%clk 0:01:02]} 32. f6+ {[%clk 0:00:48]}  gxf6 {[%clk 0:01:00]} 33. Ra4 {[%clk 0:00:41]}  Bxc3 {[%clk 0:01:00]} 34. Ra7 {[%clk 0:00:41]}  Rb8 {[%clk 0:00:58]} 35. Kf3 {[%clk 0:00:41]}  Bd4 {[%clk 0:00:58]} 36. g4 {[%clk 0:00:40]}  Bxa7 {[%clk 0:00:58]} 0-1


[Site "https://www.chess.com"]

[Event "Late Titled Tuesday Blitz February 8 2022"]
[White "Dobre, Claudiu-Cristian"]
[Black "Fier, Alexandr"]
[WhiteFideId "1211854"]
[BlackFideId "2107139"]
[WhiteElo "2207"]
[BlackElo "2569"]
[Result "0-1"]
[Round "05"]
[TimeControl "180+1"]
[Date "2022.02.09"]
[WhiteClock "0:00:06"]
[BlackClock "0:01:58"]

1. c4 {[%clk 0:03:00]}  Nf6 {[%clk 0:03:00]} 2. Nc3 {[%clk 0:03:00]}  e6 {[%clk 0:02:56]} 3. e4 {[%clk 0:03:00]}  e5 {[%clk 0:02:57]} 4. g3 {[%clk 0:02:50]}  Nc6 {[%clk 0:02:56]} 5. Bg2 {[%clk 0:02:48]}  Bc5 {[%clk 0:02:57]} 6. Nge2 {[%clk 0:02:48]}  a6 {[%clk 0:02:57]} 7. a3 {[%clk 0:02:47]}  h5 {[%clk 0:02:58]} 8. d3 {[%clk 0:02:42]}  h4 {[%clk 0:02:58]} 9. Be3 {[%clk 0:02:40]}  d6 {[%clk 0:02:57]} 10. b4 {[%clk 0:02:31]}  Bxe3 {[%clk 0:02:50]} 11. fxe3 {[%clk 0:02:31]}  Ng4 {[%clk 0:02:51]} 12. Qd2 {[%clk 0:02:18]}  Be6 {[%clk 0:02:51]} 13. h3 {[%clk 0:02:15]}  Nf6 {[%clk 0:02:47]} 14. g4 {[%clk 0:02:15]}  Nh7 {[%clk 0:02:48]} 15. Ng1 {[%clk 0:02:13]}  Ng5 {[%clk 0:02:48]} 16. Nf3 {[%clk 0:02:12]}  Nxf3+ {[%clk 0:02:49]} 17. Bxf3 {[%clk 0:02:12]}  Qg5 {[%clk 0:02:50]} 18. Bd1 {[%clk 0:02:02]}  Ke7 {[%clk 0:02:45]} 19. Ba4 {[%clk 0:02:01]}  Nd8 {[%clk 0:02:45]} 20. Nd5+ {[%clk 0:01:55]}  Bxd5 {[%clk 0:02:45]} 21. cxd5 {[%clk 0:01:56]}  b5 {[%clk 0:02:42]} 22. Bb3 {[%clk 0:01:42]}  Nb7 {[%clk 0:02:42]} 23. O-O {[%clk 0:01:32]}  g6 {[%clk 0:02:41]} 24. Rac1 {[%clk 0:01:29]}  Rhc8 {[%clk 0:02:40]} 25. Qf2 {[%clk 0:01:28]}  f6 {[%clk 0:02:40]} 26. Rc2 {[%clk 0:01:10]}  a5 {[%clk 0:02:40]} 27. Rfc1 {[%clk 0:01:08]}  Kd7 {[%clk 0:02:39]} 28. Rf1 {[%clk 0:01:05]}  axb4 {[%clk 0:02:35]} 29. axb4 {[%clk 0:01:03]}  Ra3 {[%clk 0:02:34]} 30. Rc3 {[%clk 0:00:56]}  Ke7 {[%clk 0:02:34]} 31. Qc2 {[%clk 0:00:54]}  Qxe3+ {[%clk 0:02:34]} 32. Qf2 {[%clk 0:00:54]}  Qxf2+ {[%clk 0:02:32]} 33. Rxf2 {[%clk 0:00:53]}  Nd8 {[%clk 0:02:24]} 34. Rfc2 {[%clk 0:00:53]}  Ra7 {[%clk 0:02:25]} 35. Kf2 {[%clk 0:00:49]}  Nf7 {[%clk 0:02:25]} 36. Ke3 {[%clk 0:00:45]}  Ng5 {[%clk 0:02:26]} 37. Rh2 {[%clk 0:00:43]}  Ra3 {[%clk 0:02:26]} 38. Rhc2 {[%clk 0:00:30]}  Kd7 {[%clk 0:02:24]} 39. Rf2 {[%clk 0:00:26]}  Rf8 {[%clk 0:02:20]} 40. Rfc2 {[%clk 0:00:24]}  Ra7 {[%clk 0:02:21]} 41. Rh2 {[%clk 0:00:24]}  Ra1 {[%clk 0:02:19]} 42. Rhc2 {[%clk 0:00:19]}  Ra7 {[%clk 0:02:12]} 43. Rf2 {[%clk 0:00:18]}  Kd8 {[%clk 0:02:13]} 44. Rh2 {[%clk 0:00:18]}  Ra1 {[%clk 0:02:10]} 45. Rcc2 {[%clk 0:00:15]}  Rb1 {[%clk 0:02:07]} 46. Rb2 {[%clk 0:00:15]}  Rxb2 {[%clk 0:02:08]} 47. Rxb2 {[%clk 0:00:14]}  Nxh3 {[%clk 0:02:08]} 48. Rh2 {[%clk 0:00:15]}  Nf4 {[%clk 0:02:09]} 49. Bd1 {[%clk 0:00:12]}  h3 {[%clk 0:02:09]} 50. g5 {[%clk 0:00:12]}  f5 {[%clk 0:02:03]} 51. Be2 {[%clk 0:00:12]}  Ke7 {[%clk 0:02:03]} 52. Bf1 {[%clk 0:00:11]}  Rh8 {[%clk 0:02:03]} 53. Kf3 {[%clk 0:00:10]}  Rh5 {[%clk 0:02:02]} 54. exf5 {[%clk 0:00:10]}  gxf5 {[%clk 0:02:03]} 55. d4 {[%clk 0:00:06]}  Rxg5 {[%clk 0:02:01]} 56. dxe5 {[%clk 0:00:06]}  dxe5 {[%clk 0:02:02]} 57. Bxb5 {[%clk 0:00:06]}  Rg2 {[%clk 0:01:58]} 58. Rxg2 {[%clk 0:00:06]}  hxg2 {[%clk 0:01:59]} 59. Kf2 {[%clk 0:00:06]}  Nxd5 {[%clk 0:01:59]} 60. Bc6 {[%clk 0:00:06]}  Nxb4 {[%clk 0:02:00]} 61. Bxg2 {[%clk 0:00:06]}  Kf6 {[%clk 0:02:01]} 62. Ke3 {[%clk 0:00:06]}  c5 {[%clk 0:01:58]} 0-1


[Site "https://www.chess.com"]